Cogmind - Beta 15 @@@ ROGUE MODE // 2025.05.14 @ 16:14:32 Player: Peawet Result: Destroyed by G-34 Mercenary with Small Laser Performance ------------- Evolutions (0) 0 Regions Visited (1) 200 Robots Destroyed (17) 85 Value Destroyed (297) 297 Prototype IDs (0) 0 Alien Tech Used (0) 0 Bonus (0) 0 TOTAL SCORE: 582 Bonus ------- None Cogmind --------- Core Integrity 0/250 Matter 72/300 Energy 100/100 System Corruption 5% Temperature Cool (40) Movement Core (100) Ox1 Location -10/Materials Parts ------- > --- POWER (1) -------- (None) > --- PROPULSION (2) --- (None) > --- UTILITY (2) ------ Small Storage Unit > --- WEAPON (2) ------- (None) > --- INVENTORY (8) ---- Aluminum Leg Aluminum Leg Targeting Computer Grenade Launcher Grenade Launcher Grenade Launcher Welding Torch Peak State ------------ > --- POWER ------------ Light Ion Engine > --- PROPULSION ------- Aluminum Leg Aluminum Leg > --- UTILITY ---------- Small Storage Unit Visual Processing Unit > --- WEAPON ----------- Assault Rifle Assault Rifle > --- INVENTORY -------- Light Ion Engine Grenade Launcher Grenade Launcher Grenade Launcher Grenade Launcher [Rating: 8] Favorites ----------- Power Ion Engine Engine Ion Engine Propulsion Aluminum Leg Leg Aluminum Leg Utility Small Storage Unit Storage Small Storage Unit Processor Visual Processing Unit Weapon Assault Rifle Energy Gun EM Pulse Gun Ballistic Gun Assault Rifle Launcher Grenade Launcher Special Weapon Mining Laser Slashing Weapon Mining Claw Build | -11 -10 ------- Run | Yrd Mat Slots Evolved . | . . Power . | . . Propulsion . | . . Utility . | . . Weapon . | . . Parts Attached 18 | 6 12 Power 3 | 1 2 Engine 3 | 1 2 Core . | . . Reactor . | . . Propulsion 5 | 2 3 Treads . | . . Leg 5 | 2 3 Wheel . | . . Hover . | . . Flight . | . . Utility 2 | 1 1 Device . | . . Storage 1 | 1 . Processor 1 | . 1 Hackware . | . . Protection . | . . Artifact . | . . Weapon 8 | 2 6 Energy Gun 1 | 1 . Energy Cannon . | . . Ballistic Gun 2 | 1 1 Ballistic Cannon . | . . Launcher 3 | . 3 Special Weapon 1 | . 1 Impact Weapon . | . . Slashing Weapon 1 | . 1 Piercing Weapon . | . . Special Melee Weapon . | . . Unidentified Prototypes . | . . Parts Lost 8 | . 8 Power 2 | . 2 Propulsion 2 | . 2 Utility . | . . Weapon 4 | . 4 Highest Loss Streak 7 | . 7 To Critical Strikes . | . . Average Backups 6 | 1 6 Power . | . . Propulsion 1 | . 1 Utility . | . . Weapon 3 | . 4 Tool/Special . | . . Unused Backups 4 | . 4 Power . | . . Propulsion 2 | . 2 Utility 1 | . 1 Weapon 1 | . 1 Tool/Special . | . . Average Slot Usage (%) 91 | . 91 Engine 11 | . 11 Leg 26 | . 26 Storage 14 | . 14 Processor 11 | . 11 Ballistic Gun 21 | . 21 Launcher 2 | . 2 Peak Build Rating 8 | 6 8 Average Rating 7 | 4 7 On Entrance 3 | . 6 Naked Turns . | . . Heaviest Build 15 | 12 15 Greatest Support 20 | 20 20 Greatest Overweight (x) 1 | . 1 Average Overweight (x) . | . . Largest Inventory Capacity 8 | 8 8 Average Capacity 7 | 6 8 Most Carried 8 | 2 8 Average Carried 6 | 1 6 Final Capacity 8 | 8 8 Final Carried 7 | 2 7 Class Distribution -------------------- 78% | Mutant 21% | Scavenger-Mutant Dominant Class ---------------- Mutant | -10/Materials Resources | -11 -10 ----------- Run | Yrd Mat Matter Collected 493 | 205 288 Remotely . | . . Salvage Created 368 | . 368 Parts 30 | . 30 Haulers Intercepted . | . . Recyclers Shooed . | . . Parts Field Recycled . | . . Retrieved Matter . | . . Parts Self-Destructed . | . . Prevented . | . . Kills | -11 -10 ------- Run | Yrd Mat Combat Hostiles Destroyed 14 | . 14 Guns 11 | . 11 AOE 3 | . 3 Classes Destroyed 4 | . 4 Worker 2 | . 2 Builder 1 | . 1 Swarmer 9 | . 9 Grunt 5 | . 5 Best Kill Streak 4 | . 4 Combat Bots Only 4 | . 4 Max Kills in Single Turn 2 | . 2 Gunslinging 1 | . 1 Exploded 1 | . 1 Melee . | . . Uniques/NPCs Destroyed . | . . Combat | -11 -10 -------- Run | Yrd Mat Hostile Shots Fired 123 | . 123 Missed 34 | . 34 Hits 89 | . 89 Projectile 89 | . 89 Critical Strikes 1 | . 1 Damage Taken 1028 | . 1028 Core 251 | . 251 Absorbed by Shields . | . . Regen/Repaired (Parts) 26 | . 26 Core Remaining (%) 100 | 100 . Volleys Fired 49 | . 49 Largest 2 | . 2 Hottest 100 | . 100 Shots Fired 86 | . 86 Gun 74 | . 74 Cannon . | . . Launcher 9 | . 9 Special 3 | . 3 Kinetic 74 | . 74 Thermal 3 | . 3 Explosive 9 | . 9 Electromagnetic . | . . Robot Hit Streak 6 | . 6 Robot Miss Streak 4 | . 4 Penetration Max . | . . Secondary Targets 1 | . 1 Max Gunslinging Chain 1 | . 1 Shots Hit Robots 44 | . 44 Core Hits 23 | . 23 Critical Kills . | . . Critical Parts Destroyed . | . . Critical Strikes . | . . Melee Attacks 1 | . 1 Impact . | . . Slashing 1 | . 1 Piercing . | . . Sneak Attacks . | . . Combat Hostiles . | . . Follow-up Attacks . | . . Damage Inflicted 824 | . 824 Guns 490 | . 490 Cannons . | . . Explosions 274 | . 274 Melee . | . . Ramming 12 | . 12 Kinetic 490 | . 490 Thermal 48 | . 48 Explosive 274 | . 274 Electromagnetic . | . . Impact . | . . Slashing . | . . Piercing . | . . Highest Corruption 5 | . 5 Average Corruption 5 | . 5 Corruption Purged . | . . Corruption Blocked . | . . Effects 1 | . 1 Heat Flow Errors 1 | . 1 Overload Shots . | . . Overflow Damage 16 | . 16 Projectiles . | . . Explosions 16 | . 16 Melee . | . . Knockbacks . | . . Impact . | . . Kinetic . | . . Secondary . | . . Self-Inflicted Damage 91 | . 91 Shots 3 | . 3 Rammed 6 | . 6 Targets Rammed 6 | . 6 Kicked . | . . Crushed . | . . Highest Temperature 235 | . 235 Average Temperature 60 | . 60 Received Heat Transfer 312 | . 312 Siege Activations . | . . Martial Activations . | . . Shielding Activations . | . . Robots Disrupted . | . . Combat Hostiles . | . . Robots Corrupted . | . . Combat Hostiles . | . . Parts Fried . | . . Impact Corruptions . | . . Robots Melted . | . . Combat Hostiles . | . . Parts Melted . | . . Heat Transferred 100 | . 100 Parts Sabotaged . | . . Parts Stolen . | . . Parts Stripped . | . . Power Chain Reactions . | . . Alert | -11 -10 ------- Run | Yrd Mat Maximum Alert Level 1 | . 1 Low Security (%) 98 | 100 98 Level 1 1 | . 1 Level 2 . | . . Level 3 . | . . Level 4 . | . . Level 5 . | . . High Security . | . . Max Security . | . . Peak Influence 205 | . 205 Initial . | . . Average 54 | . 58 Influence Increases 542 | . 542 Destroy 0b10 Robot/C 280 | . 280 Destroy 0b10 Robot/NC 15 | . 15 Destroy Leader 60 | . 60 Successful Hack 2 | . 2 Disable Machine 45 | . 45 Destroy Structure 50 | . 50 Lose Combat Pursuer 90 | . 90 Influence Decreases 382 | . 382 Time Decay 302 | . 302 Lost Part 80 | . 80 Squads Dispatched 4 | . 4 Investigation 2 | . 2 Extermination . | . . Reinforcement 2 | . 2 Assault . | . . Garrison . | . . Intercept . | . . Searches Triggered . | . . Construction Impeded . | . . Haulers Reinforced . | . . Active Scanning Responses . | . . Cargo Convoy Interrupts . | . . Stealth | -11 -10 --------- Run | Yrd Mat Distress Signals 5 | . 5 Communications Jammed . | . . Distress Signals . | . . Times Spotted 27 | . 27 Peak Tracking Total 7 | . 7 Tactical Retreats 3 | . 3 Traps | -11 -10 ------- Run | Yrd Mat Traps Triggered 3 | . 3 Indirectly . | . . Trap Hack Attempts . | . . Triggered . | . . Disarmed . | . . Reprogrammed . | . . Reused . | . . Traps Extracted . | . . Installed . | . . Triggered . | . . Machines | -11 -10 ---------- Run | Yrd Mat Machines Disabled 3 | . 3 Max in Single Turn 2 | . 2 Machines Repaired . | . . Machines Dismantled . | . . Machines Sabotaged . | . . Overloaded Fab Kills . | . . Hacking | -11 -10 --------- Run | Yrd Mat Machines Accessed 1 | . 1 Terminals . | . . Fabricators . | . . Repair Stations 1 | . 1 Recycling Units . | . . Scanalyzers . | . . Garrison Access . | . . Total Hacks 2 | . 2 Successful 2 | . 2 Failed . | . . Catastrophic . | . . Database Lockouts . | . . Manual . | . . Terminals . | . . Fabricators . | . . Repair Stations 2 | . 2 Recycling Units . | . . Scanalyzers . | . . Garrison Access . | . . Terminal Hacks . | . . Fabricator Hacks . | . . Repair Station Hacks 2 | . 2 Scan Component 1 | . 1 Repair 1 | . 1 Recycling Unit Hacks . | . . Scanalyzer . | . . Garrison Access Hacks . | . . Unauthorized Hacks . | . . Terminals . | . . Fabricators . | . . Repair Stations . | . . Recycling Units . | . . Scanalyzers . | . . Garrison Access . | . . Data Cores Recovered . | . . Used . | . . Hacking Detections . | . . Full Trace Events . | . . Feedback Events . | . . Feedback Blocked . | . . Robot Schematics Acquired . | . . Robots Built . | . . Authchips . | . . Time . | . . Total Robot Build Rating . | . . Part Schematics Acquired . | . . Parts Built . | . . Authchips . | . . Time . | . . Total Part Build Rating . | . . Parts Repaired 1 | . 1 Time 26 | . 26 Parts Recycled . | . . Recycled Matter . | . . Retrieved Matter . | . . Retrieved Components . | . . Parts Scanalyzed . | . . Part Schematics Acquired . | . . Parts Damaged . | . . Bothacking | -11 -10 ------------ Run | Yrd Mat Used RIF Installer . | . . Robots Hacked . | . . Non-combat . | . . Combat . | . . Robot Hacks Applied . | . . Relay Couplers Released . | . . Fabnet Peak Effective % . | . . Robots Rewired . | . . Allies Hacked . | . . Hacks Repelled . | . . Allies | -11 -10 -------- Run | Yrd Mat Total Allies . | . . Largest Group . | . . Highest-Rated Group . | . . Highest-Rated Ally . | . . Total Orders . | . . Ally Attacks . | . . Total Damage . | . . Kills . | . . Allies Corrupted . | . . Allies Melted . | . . Intel | -11 -10 ------- Run | Yrd Mat Active Infowar (turns) 680 | . 680 Optics 680 | . 680 Robot Analysis Total . | . . Derelict Logs Recovered . | . . Drone Launches . | . . Drone Recoveries . | . . Exploration | -11 -10 ------------- Run | Yrd Mat Turns Passed 855 | 60 795 Spaces Moved 449 | 43 406 Core 18 | 3 15 Treads . | . . Legs 431 | 40 391 Wheels . | . . Hover . | . . Flight . | . . Fastest Speed 50 | 50 100 Average Speed 119 | 115 119 Slowest Speed 190 | 120 190 Overloaded Moves . | . . Propulsion Burnouts . | . . Robots Hopped . | . . Potential Cave-ins . | . . Cave-ins Triggered 1 | . 1 Exploration Rate (%) 29 | 3 55 Regions Visited 1 Branch Regions . Pre-discovered Areas . | . . Known Exits Taken . | . . Unknown Exits Taken 1 | 1 . Scrap Searched . | . . Spaces Dug . | . . Terrain Destroyed 62 | . 62 Melee . | . . Projectile 1 | . 1 AOE 61 | . 61 Terrain Rammed . | . . Walls Destroyed . | . . Machines Disabled . | . . Actions | -11 -10 --------- Run | Yrd Mat Total 671 | 50 621 Wait 115 | . 115 Move 448 | 42 406 Hop . | . . Pick Up 15 | 2 13 Fast Attach 8 | 6 2 Attach 8 | . 8 Detach 3 | . 3 Swap 11 | . 11 Drop 7 | . 7 Fire 49 | . 49 Melee 1 | . 1 Ram 6 | . 6 Kick . | . . Crush . | . . Escape Stasis . | . . Rewire . | . . Trap . | . . Miscellaneous . | . . Route ------- -11/Scrapyard -10/Materials (discovered 1 exit: [*Min]) History --------- Turn | Location | Event 11 | -11/Scrapyard | Discovered new exit (range 15) 61 | -11/Scrapyard | Entered Materials 301 | -10/Materials | Build established: Mutant 474 | -10/Materials | Repaired Assault Rifle 612 | -10/Materials | Discovered new exit (range 17) 834 | -10/Materials | Crushed by falling debris 834 | -10/Materials | Core integrity fell below 50% 847 | -10/Materials | Core integrity fell below 20% 856 | -10/Materials | Destroyed by G-34 Mercenary with Small Laser Last Messages --------------- 00836_ U-05 Engineer builds a Wall. 00837_ Acquired 30 matter. 00837_ U-05 Engineer lays Concrete. 00838_ The unstable cave ceiling collapses. 00838_ U-05 Engineer lays Concrete. 00840_ R-06 Scavenger inserts Lgt. Ion Engine into recycling unit. 00843_ Slammed into G-34 Mercenary. 00843_ Destabilizing: System interference. 00843_ Visual Processing Unit temporarily disabled. 00843_ R-06 Scavenger inserts Lgt. Assault Rifle into recycling unit. 00844_ Recycling unit begins recycling process. 00844_ Slammed into G-34 Mercenary. 00846_ System corrupted: Heat flow error (+254). 00846_ U-05 Engineer builds a Wall. 00846_ Slammed into G-34 Mercenary. 00846_ Triggered Blade Trap. 00846_ Massive razor-sharp blades shoot up from within the floor. 00846_ Visual Processing Unit severed. 00847_ U-05 Engineer builds a Wall. 00854_ Acquired Welding Torch. Map ----- +----------------------------------------------------+ | ### ####=% ######## # ##########?????? | | ??# #??# * # ### # #?????? | | ??# #??# ! ### # ###?# # """"" #?????? | | ??# #??# #?#####???# # """"" #?????? | | ??# #??#* #?????????# # """"" #?????? | | ??# #??# "T" #?????????# + """"" #?????? | | ??# #??# """ #?????????# # """"" #?????? | | ??# #??############?????????##### """"" #?????? | | ??# #???????????????????????????# """"" #?????? | | ??# #???????????????????????????# #?????? | | ### #???????????????????????????##########?????? | | # #????????????????########??????????????????? | | ""# #????######??#+??# ! #??????????????????? | | ""# #???? #??# ??# #?????? ??????????? | | T"# #??""" #??# ??# #????? ???????????? | | ""# #?#""" #??# ??# "Y" #????? ???????????? | | ""# #?# "" #### ### """ #????#+#####???????? | | #= #?# # = # = #???? ??????? | | +## #?#" [#### ####/######## ?????? | | #?#"" +% g ?????? | | #?#"" ##### #### #???????????? | | ### #?# ### #### !! #???????????? | | ### #?# #"""""""## !! ]]#???????????? | | ## ###??? #" "! "## !! ]]#??##### ]??? | | # #######+##" / "## ## //?? | | # a @ //?? | | + * = w < [??? | | # * ! [??? | | # #######+## ##### ##### #????? | | #### ##???? #########?#####+#####???# ?#?????? | | #######?? """ #?????????# = #????????????? | | ##??????# """ #?????????# = #????????????? | | ????????# """ #?????????# ! !#????????????? | | ????????# +???????? / #????????????? | | ????????# #???????### """ """ #????????????? | | ????????# #?????????# """ """ #????????????? | | ????????# === #?????????# """ """ #????????????? | | ????????#?== #?????????# #????????????? | | ???????????= = #?????????###########????????????? | | ????????????? #????????????????????????????????? | | ???????????????##????????????????????????????????? | | ?????????????????????????????????????????????????? | | ?????????????????????????????????????????????????? | | ?????????????????????????????????????????????????? | | ?????????????????????????????????????????????????? | | ?????????????????????????????????????????????????? | | ?????????????????????????????????????????????????? | | ?????????????????????????????????????????????????? | | ?????????????????????????????????????????????????? | | ?????????????????????????????????????????????????? | +----------------------------------------------------+ Best States ------------- Heat Dissipation 25 Energy Generation 10 Energy Capacity 250 Matter Stores 245 Matter Capacity 300 Sight Range 18 Terrain Scan Density 10 Evasion (%) 55 Item Schematics ----------------- None Robot Schematics ------------------ None Fabricated ------------ Nothing Repaired ---------- Assault Rifle | 74% | -10/Materials Alien Tech Used ----------------- None Achievements -------------- None Challenges ------------ None Game ------ Seed TachyonMeleeMount Manual? 0 Play Time 00:07:56 Cumulative 9.2 hours Start 2025.05.14 @ 16:04:22 End 2025.05.14 @ 16:14:32 Sessions 1 Manual Loads 0 Difficulty Rogue Special Mode None Game No. 19 Rogue 19 Adventurer 0 Explorer 0 Win Type - Total 0 Types 0/0/0/0/0/0/0/0/0/0 Lore% 11 Gallery% 16 Achievement% 15 Wizard Run 0 Options --------- Layout 0 ASCII 0 Keyboard 0 Movement Mouse Keybinds 0 Fullscreen 1 Font 18/SmallcapsGlow Map View 38x25 Zoom Use 100% Tactical HUD 1 Map Filters NONE Filters NONE Steam 1 RUN: fca157f0-7693-4762-aec3-e59ba6e3630f